[Event "Titled Tuesday Blitz March 29 Late 2022"]
[White "Jensen, Matthew R"]
[Black "Sarkar, Justin"]
[WhiteFideId "2018110"]
[BlackFideId "2010011"]
[WhiteElo "2285"]
[BlackElo "2038"]
[Result "1/2-1/2"]
[Round "08"]
[TimeControl "180+1"]
[Date "2022.03.30"]
[WhiteClock "0:00:24"]
[BlackClock "0:00:01"]

1. d4 {[%clk 0:02:51]}  Nf6 {[%clk 0:02:50]} 2. c4 {[%clk 0:02:51]}  e6 {[%clk 0:02:49]} 3. Nc3 {[%clk 0:02:50]}  Bb4 {[%clk 0:02:47]} 4. Nf3 {[%clk 0:02:49]}  b6 {[%clk 0:02:44]} 5. Bg5 {[%clk 0:02:48]}  h6 {[%clk 0:02:41]} 6. Bxf6 {[%clk 0:02:48]}  Bxc3+ {[%clk 0:02:37]} 7. bxc3 {[%clk 0:02:48]}  Qxf6 {[%clk 0:02:37]} 8. e4 {[%clk 0:02:48]}  Bb7 {[%clk 0:02:32]} 9. Bd3 {[%clk 0:02:47]}  d6 {[%clk 0:02:28]} 10. e5 {[%clk 0:02:47]}  dxe5 {[%clk 0:02:21]} 11. dxe5 {[%clk 0:02:45]}  Qf4 {[%clk 0:02:11]} 12. Qe2 {[%clk 0:02:35]}  Nd7 {[%clk 0:01:57]} 13. O-O {[%clk 0:02:29]}  Bxf3 {[%clk 0:01:52]} 14. gxf3 {[%clk 0:02:24]}  Nxe5 {[%clk 0:01:51]} 15. Be4 {[%clk 0:02:21]}  Rd8 {[%clk 0:01:44]} 16. c5 {[%clk 0:02:22]}  O-O {[%clk 0:01:40]} 17. cxb6 {[%clk 0:02:22]}  axb6 {[%clk 0:01:40]} 18. Rfd1 {[%clk 0:02:18]}  f5 {[%clk 0:01:29]} 19. Bb7 {[%clk 0:01:50]}  Rxd1+ {[%clk 0:01:05]} 20. Rxd1 {[%clk 0:01:48]}  Rb8 {[%clk 0:00:58]} 21. Re1 {[%clk 0:01:46]}  Rxb7 {[%clk 0:00:54]} 22. Qxe5 {[%clk 0:01:46]}  Qxe5 {[%clk 0:00:54]} 23. Rxe5 {[%clk 0:01:47]}  Kf7 {[%clk 0:00:54]} 24. Re2 {[%clk 0:01:38]}  Ra7 {[%clk 0:00:53]} 25. Rd2 {[%clk 0:01:34]}  Ke7 {[%clk 0:00:52]} 26. Kf1 {[%clk 0:01:32]}  Ra3 {[%clk 0:00:51]} 27. Rc2 {[%clk 0:01:32]}  Kd6 {[%clk 0:00:49]} 28. Ke2 {[%clk 0:01:32]}  Kc5 {[%clk 0:00:44]} 29. Kd3 {[%clk 0:01:31]}  e5 {[%clk 0:00:40]} 30. Re2 {[%clk 0:01:13]}  Kd5 {[%clk 0:00:39]} 31. Rb2 {[%clk 0:00:46]}  g5 {[%clk 0:00:28]} 32. Rb5+ {[%clk 0:00:45]}  Kd6 {[%clk 0:00:27]} 33. Rb2 {[%clk 0:00:44]}  Ra4 {[%clk 0:00:20]} 34. Rd2 {[%clk 0:00:34]}  Rh4 {[%clk 0:00:18]} 35. Ke3+ {[%clk 0:00:34]}  Ke6 {[%clk 0:00:12]} 36. Rd8 {[%clk 0:00:34]}  Rxh2 {[%clk 0:00:11]} 37. Re8+ {[%clk 0:00:35]}  Kd6 {[%clk 0:00:11]} 38. Rf8 {[%clk 0:00:34]}  f4+ {[%clk 0:00:07]} 39. Ke4 {[%clk 0:00:32]}  Rxf2 {[%clk 0:00:07]} 40. Rf6+ {[%clk 0:00:33]}  Kc5 {[%clk 0:00:06]} 41. Kxe5 {[%clk 0:00:31]}  Re2+ {[%clk 0:00:06]} 42. Kf5 {[%clk 0:00:31]}  Re3 {[%clk 0:00:06]} 43. Kg4 {[%clk 0:00:29]}  Rxc3 {[%clk 0:00:05]} 44. Rxh6 {[%clk 0:00:29]}  Ra3 {[%clk 0:00:05]} 45. Rh2 {[%clk 0:00:28]}  b5 {[%clk 0:00:04]} 46. Rc2+ {[%clk 0:00:29]}  Kb6 {[%clk 0:00:03]} 47. Kxg5 {[%clk 0:00:28]}  Rxf3 {[%clk 0:00:03]} 48. Re2 {[%clk 0:00:28]}  c5 {[%clk 0:00:02]} 49. Kg4 {[%clk 0:00:28]}  Re3 {[%clk 0:00:02]} 50. Rd2 {[%clk 0:00:27]}  f3 {[%clk 0:00:03]} 51. Kf4 {[%clk 0:00:27]}  Rc3 {[%clk 0:00:02]} 52. Rd6+ {[%clk 0:00:25]}  Ka5 {[%clk 0:00:03]} 53. Rd8 {[%clk 0:00:25]}  b4 {[%clk 0:00:03]} 54. Ra8+ {[%clk 0:00:25]}  Kb5 {[%clk 0:00:02]} 55. Ke4 {[%clk 0:00:26]}  Kc4 {[%clk 0:00:02]} 56. Rf8 {[%clk 0:00:27]}  Rc2 {[%clk 0:00:01]} 57. Rf4 {[%clk 0:00:27]}  Re2+ {[%clk 0:00:01]} 58. Kxf3+ {[%clk 0:00:28]}  Kd3 {[%clk 0:00:01]} 59. Rf5 {[%clk 0:00:28]}  Rc2 {[%clk 0:00:01]} 60. Rd5+ {[%clk 0:00:28]}  Kc4 {[%clk 0:00:01]} 61. Rd2 {[%clk 0:00:26]}  Rxa2 {[%clk 0:00:02]} 62. Rxa2 {[%clk 0:00:27]}  b3 {[%clk 0:00:01]} 63. Ra8 {[%clk 0:00:26]}  Kc3 {[%clk 0:00:01]} 64. Ke2 {[%clk 0:00:27]}  b2 {[%clk 0:00:01]} 65. Rb8 {[%clk 0:00:27]}  Kc2 {[%clk 0:00:01]} 66. Ke3 {[%clk 0:00:24]}  c4 {[%clk 0:00:01]} 67. Kd4 {[%clk 0:00:24]}  c3 {[%clk 0:00:01]} 68. Kc4 {[%clk 0:00:25]}  Kd2 {[%clk 0:00:01]} 69. Rb7 {[%clk 0:00:25]}  Kc2 {[%clk 0:00:01]} 70. Rb3 {[%clk 0:00:23]}  b1=Q {[%clk 0:00:01]} 71. Rxb1 {[%clk 0:00:23]}  Kxb1 {[%clk 0:00:01]} 72. Kxc3 {[%clk 0:00:24]} 1/2-1/2


[Site "https://www.chess.com"]

[Event "Titled Tuesday Blitz March 29 Late 2022"]
[White "Kalavannan, Koby"]
[Black "Bibasa, Bob"]
[WhiteFideId "425753"]
[BlackFideId "10000240"]
[WhiteElo "1927"]
[BlackElo "2056"]
[Result "1-0"]
[Round "08"]
[TimeControl "180+1"]
[Date "2022.03.30"]
[WhiteClock "0:00:23"]
[BlackClock "0:00:29"]

1. d4 {[%clk 0:03:00]}  Nf6 {[%clk 0:02:59]} 2. c4 {[%clk 0:03:01]}  e6 {[%clk 0:02:59]} 3. g3 {[%clk 0:03:01]}  d5 {[%clk 0:02:59]} 4. Bg2 {[%clk 0:03:01]}  c6 {[%clk 0:02:59]} 5. Qc2 {[%clk 0:03:01]}  Bd6 {[%clk 0:02:58]} 6. Nf3 {[%clk 0:03:01]}  O-O {[%clk 0:02:58]} 7. O-O {[%clk 0:03:02]}  Ne4 {[%clk 0:02:58]} 8. Rd1 {[%clk 0:03:02]}  Nd7 {[%clk 0:02:57]} 9. Nc3 {[%clk 0:03:02]}  f5 {[%clk 0:02:58]} 10. Ne5 {[%clk 0:03:01]}  Qf6 {[%clk 0:02:40]} 11. f4 {[%clk 0:02:54]}  Kh8 {[%clk 0:02:23]} 12. Be3 {[%clk 0:02:54]}  Bxe5 {[%clk 0:02:19]} 13. fxe5 {[%clk 0:02:22]}  Qf7 {[%clk 0:02:15]} 14. Nxe4 {[%clk 0:02:19]}  fxe4 {[%clk 0:02:13]} 15. Rf1 {[%clk 0:02:19]}  Qe7 {[%clk 0:02:13]} 16. Rxf8+ {[%clk 0:02:11]}  Nxf8 {[%clk 0:02:13]} 17. Rf1 {[%clk 0:02:11]}  Bd7 {[%clk 0:02:13]} 18. c5 {[%clk 0:02:09]}  Ng6 {[%clk 0:02:13]} 19. Qd2 {[%clk 0:02:09]}  Rf8 {[%clk 0:02:12]} 20. Bg5 {[%clk 0:02:08]}  Rxf1+ {[%clk 0:02:12]} 21. Bxf1 {[%clk 0:02:09]}  Qf7 {[%clk 0:02:12]} 22. Qa5 {[%clk 0:02:04]}  h6 {[%clk 0:02:08]} 23. Be3 {[%clk 0:01:56]}  a6 {[%clk 0:02:04]} 24. Qd8+ {[%clk 0:01:51]}  Kh7 {[%clk 0:02:04]} 25. Bh3 {[%clk 0:01:51]}  Nf8 {[%clk 0:01:58]} 26. Qc7 {[%clk 0:01:46]}  Be8 {[%clk 0:01:56]} 27. Qc8 {[%clk 0:01:43]}  Qd7 {[%clk 0:01:52]} 28. Qb8 {[%clk 0:01:38]}  Ng6 {[%clk 0:01:43]} 29. Kf2 {[%clk 0:01:35]}  Ne7 {[%clk 0:01:42]} 30. Bxe6 {[%clk 0:01:29]}  Qxe6 {[%clk 0:01:39]} 31. Qxe8 {[%clk 0:01:30]}  Qf5+ {[%clk 0:01:39]} 32. Kg1 {[%clk 0:01:28]}  Ng6 {[%clk 0:01:37]} 33. e6 {[%clk 0:01:22]}  Qg4 {[%clk 0:01:34]} 34. Kf2 {[%clk 0:01:00]}  Qh3 {[%clk 0:01:31]} 35. Ke1 {[%clk 0:00:50]}  Qxh2 {[%clk 0:01:27]} 36. e7 {[%clk 0:00:46]}  Qxg3+ {[%clk 0:01:25]} 37. Kd2 {[%clk 0:00:34]}  Nh4 {[%clk 0:00:38]} 38. Qf8 {[%clk 0:00:25]}  Nf3+ {[%clk 0:00:34]} 39. exf3 {[%clk 0:00:24]}  Qg2+ {[%clk 0:00:35]} 40. Kc3 {[%clk 0:00:24]}  Qe2 {[%clk 0:00:29]} 41. Qf5+ {[%clk 0:00:23]} 1-0


[Site "https://www.chess.com"]

[Event "Titled Tuesday Blitz March 29 Late 2022"]
[White "Kamsky, Gata"]
[Black "Xiong, Jeffery"]
[WhiteFideId "2000024"]
[BlackFideId "2047640"]
[WhiteElo "2645"]
[BlackElo "2727"]
[Result "1/2-1/2"]
[Round "08"]
[TimeControl "180+1"]
[Date "2022.03.29"]
[WhiteClock "0:00:16"]
[BlackClock "0:00:14"]

1. d4 {[%clk 0:03:00]}  d5 {[%clk 0:03:00]} 2. Bf4 {[%clk 0:03:00]}  c5 {[%clk 0:02:58]} 3. e3 {[%clk 0:03:00]}  Nf6 {[%clk 0:02:51]} 4. c3 {[%clk 0:02:59]}  e6 {[%clk 0:02:50]} 5. Nd2 {[%clk 0:02:58]}  Nbd7 {[%clk 0:02:50]} 6. Bd3 {[%clk 0:02:53]}  Be7 {[%clk 0:02:51]} 7. h3 {[%clk 0:02:51]}  O-O {[%clk 0:02:50]} 8. Ngf3 {[%clk 0:02:51]}  c4 {[%clk 0:02:51]} 9. Bc2 {[%clk 0:02:50]}  b5 {[%clk 0:02:51]} 10. a3 {[%clk 0:02:50]}  Bb7 {[%clk 0:02:51]} 11. O-O {[%clk 0:02:47]}  a5 {[%clk 0:02:51]} 12. Ne5 {[%clk 0:02:13]}  Nxe5 {[%clk 0:02:49]} 13. Bxe5 {[%clk 0:02:12]}  Nd7 {[%clk 0:02:49]} 14. Bg3 {[%clk 0:02:04]}  f5 {[%clk 0:02:49]} 15. Nf3 {[%clk 0:01:57]}  b4 {[%clk 0:02:39]} 16. axb4 {[%clk 0:01:56]}  axb4 {[%clk 0:02:40]} 17. cxb4 {[%clk 0:01:55]}  Bxb4 {[%clk 0:02:38]} 18. Ne5 {[%clk 0:01:53]}  Nxe5 {[%clk 0:02:27]} 19. Bxe5 {[%clk 0:01:53]}  Qb6 {[%clk 0:02:25]} 20. Qf3 {[%clk 0:01:34]}  Bd6 {[%clk 0:01:58]} 21. Qg3 {[%clk 0:01:28]}  Bxe5 {[%clk 0:01:56]} 22. Qxe5 {[%clk 0:01:27]}  Kh8 {[%clk 0:01:43]} 23. Rxa8 {[%clk 0:01:09]}  Rxa8 {[%clk 0:01:44]} 24. Rb1 {[%clk 0:01:08]}  h6 {[%clk 0:01:39]} 25. g4 {[%clk 0:01:07]}  Rf8 {[%clk 0:00:42]} 26. gxf5 {[%clk 0:01:06]}  exf5 {[%clk 0:00:43]} 27. Bxf5 {[%clk 0:01:03]}  Qd8 {[%clk 0:00:39]} 28. Bg4 {[%clk 0:00:37]}  Bc8 {[%clk 0:00:26]} 29. Kg2 {[%clk 0:00:28]}  Qh4 {[%clk 0:00:20]} 30. Qg3 {[%clk 0:00:27]}  Qe7 {[%clk 0:00:20]} 31. Qe5 {[%clk 0:00:24]}  Qh4 {[%clk 0:00:21]} 32. f3 {[%clk 0:00:22]}  Qd8 {[%clk 0:00:13]} 33. Ra1 {[%clk 0:00:20]}  Re8 {[%clk 0:00:13]} 34. Qf4 {[%clk 0:00:20]}  Rf8 {[%clk 0:00:13]} 35. Qe5 {[%clk 0:00:20]}  Re8 {[%clk 0:00:14]} 36. Qf4 {[%clk 0:00:20]}  Rf8 {[%clk 0:00:14]} 37. Qe5 {[%clk 0:00:16]} 1/2-1/2


[Site "https://www.chess.com"]

[Event "Titled Tuesday Blitz March 29 Late 2022"]
[White "Le Goff, Ronan"]
[Black "Meza, Anahi"]
[WhiteFideId "612073"]
[BlackFideId "111325"]
[WhiteElo "2276"]
[BlackElo "1968"]
[Result "1-0"]
[Round "08"]
[TimeControl "180+1"]
[Date "2022.03.30"]
[WhiteClock "0:02:07"]
[BlackClock "0:00:59"]

1. d4 {[%clk 0:03:00]}  Nf6 {[%clk 0:02:55]} 2. Bf4 {[%clk 0:03:01]}  d6 {[%clk 0:02:54]} 3. Nc3 {[%clk 0:03:01]}  g6 {[%clk 0:02:53]} 4. e4 {[%clk 0:03:01]}  Bg7 {[%clk 0:02:52]} 5. Qd2 {[%clk 0:03:01]}  O-O {[%clk 0:02:49]} 6. O-O-O {[%clk 0:03:01]}  Re8 {[%clk 0:02:47]} 7. Kb1 {[%clk 0:02:58]}  c6 {[%clk 0:02:46]} 8. h4 {[%clk 0:02:57]}  b5 {[%clk 0:02:46]} 9. f3 {[%clk 0:02:55]}  b4 {[%clk 0:02:41]} 10. Nce2 {[%clk 0:02:55]}  a5 {[%clk 0:02:41]} 11. g4 {[%clk 0:02:54]}  a4 {[%clk 0:02:33]} 12. h5 {[%clk 0:02:50]}  b3 {[%clk 0:02:27]} 13. hxg6 {[%clk 0:02:48]}  fxg6 {[%clk 0:02:14]} 14. cxb3 {[%clk 0:02:46]}  axb3 {[%clk 0:02:12]} 15. a3 {[%clk 0:02:46]}  Na6 {[%clk 0:01:47]} 16. Nc1 {[%clk 0:02:40]}  c5 {[%clk 0:01:41]} 17. Bc4+ {[%clk 0:02:28]}  Kh8 {[%clk 0:01:30]} 18. e5 {[%clk 0:02:24]}  dxe5 {[%clk 0:01:17]} 19. dxe5 {[%clk 0:02:20]}  Qxd2 {[%clk 0:01:13]} 20. Rxd2 {[%clk 0:02:20]}  Nd7 {[%clk 0:01:09]} 21. Rdh2 {[%clk 0:02:12]}  h5 {[%clk 0:01:06]} 22. Rxh5+ {[%clk 0:02:07]}  gxh5 {[%clk 0:00:59]} 23. Rxh5+ {[%clk 0:02:07]}  Bh6 {[%clk 0:00:59]} 24. Bxh6 {[%clk 0:02:07]} 1-0


[Site "https://www.chess.com"]

[Event "Titled Tuesday Blitz March 29 Late 2022"]
[White "Li, Ben"]
[Black "Al-Tarboush, Ward"]
[WhiteFideId "2089980"]
[BlackFideId "7601450"]
[WhiteElo "2267"]
[BlackElo "2276"]
[Result "1-0"]
[Round "08"]
[TimeControl "180+1"]
[Date "2022.03.29"]
[WhiteClock "0:01:45"]
[BlackClock "0:00:33"]

1. d4 {[%clk 0:03:00]}  b6 {[%clk 0:03:00]} 2. c4 {[%clk 0:03:00]}  Bb7 {[%clk 0:03:01]} 3. Nc3 {[%clk 0:02:55]}  Nf6 {[%clk 0:03:00]} 4. Nf3 {[%clk 0:02:54]}  e6 {[%clk 0:03:00]} 5. a3 {[%clk 0:02:55]}  Be7 {[%clk 0:02:58]} 6. d5 {[%clk 0:02:48]}  exd5 {[%clk 0:02:52]} 7. cxd5 {[%clk 0:02:49]}  O-O {[%clk 0:02:45]} 8. e4 {[%clk 0:02:49]}  Re8 {[%clk 0:02:43]} 9. Bd3 {[%clk 0:02:50]}  Na6 {[%clk 0:02:33]} 10. O-O {[%clk 0:02:49]}  Nc5 {[%clk 0:02:33]} 11. Bc2 {[%clk 0:02:49]}  Bd6 {[%clk 0:02:31]} 12. Re1 {[%clk 0:02:46]}  Ng4 {[%clk 0:02:17]} 13. h3 {[%clk 0:02:44]}  Ne5 {[%clk 0:02:15]} 14. Nd4 {[%clk 0:02:40]}  a5 {[%clk 0:01:57]} 15. f4 {[%clk 0:02:38]}  Ng6 {[%clk 0:01:57]} 16. e5 {[%clk 0:02:34]}  Bf8 {[%clk 0:01:51]} 17. Be3 {[%clk 0:02:26]}  Qh4 {[%clk 0:01:49]} 18. Qd2 {[%clk 0:02:25]}  d6 {[%clk 0:01:38]} 19. e6 {[%clk 0:02:13]}  fxe6 {[%clk 0:01:36]} 20. dxe6 {[%clk 0:02:08]}  Qf6 {[%clk 0:01:29]} 21. f5 {[%clk 0:02:08]}  Nxe6 {[%clk 0:00:33]} 22. Nxe6 {[%clk 0:01:52]}  Rxe6 {[%clk 0:00:33]} 23. fxe6 {[%clk 0:01:45]}  Re8 {[%clk 0:00:33]} 24. Bg5 {[%clk 0:01:45]} 1-0


[Site "https://www.chess.com"]

[Event "Titled Tuesday Blitz March 29 Late 2022"]
[White "Paravyan, David"]
[Black "Martinez Alcantara, Jose Eduardo"]
[WhiteFideId "4194985"]
[BlackFideId "3805662"]
[WhiteElo "2569"]
[BlackElo "2690"]
[Result "1-0"]
[Round "08"]
[TimeControl "180+1"]
[Date "2022.03.29"]
[WhiteClock "0:00:03"]
[BlackClock "0:00:02"]

1. e4 {[%clk 0:03:00]}  c5 {[%clk 0:02:59]} 2. Nf3 {[%clk 0:02:58]}  d6 {[%clk 0:03:00]} 3. d4 {[%clk 0:02:58]}  cxd4 {[%clk 0:03:01]} 4. Nxd4 {[%clk 0:02:59]}  Nf6 {[%clk 0:03:01]} 5. Nc3 {[%clk 0:03:00]}  Nc6 {[%clk 0:03:02]} 6. Bg5 {[%clk 0:03:00]}  e6 {[%clk 0:03:02]} 7. Qd2 {[%clk 0:02:58]}  a6 {[%clk 0:03:03]} 8. Nxc6 {[%clk 0:02:58]}  bxc6 {[%clk 0:03:03]} 9. O-O-O {[%clk 0:02:59]}  Be7 {[%clk 0:03:00]} 10. Bxf6 {[%clk 0:02:59]}  gxf6 {[%clk 0:03:00]} 11. Bc4 {[%clk 0:03:00]}  Qa5 {[%clk 0:02:51]} 12. Rhe1 {[%clk 0:02:59]}  Bb7 {[%clk 0:02:50]} 13. Kb1 {[%clk 0:02:51]}  O-O-O {[%clk 0:02:43]} 14. Bb3 {[%clk 0:02:49]}  Kb8 {[%clk 0:02:40]} 15. f4 {[%clk 0:02:16]}  Rd7 {[%clk 0:01:40]} 16. f5 {[%clk 0:02:11]}  exf5 {[%clk 0:01:38]} 17. exf5 {[%clk 0:02:11]}  d5 {[%clk 0:01:35]} 18. Qh6 {[%clk 0:02:01]}  Qd8 {[%clk 0:01:29]} 19. a3 {[%clk 0:01:40]}  Bd6 {[%clk 0:01:25]} 20. g3 {[%clk 0:01:37]}  Be5 {[%clk 0:01:25]} 21. Na4 {[%clk 0:01:37]}  Bd6 {[%clk 0:01:08]} 22. Qe3 {[%clk 0:01:20]}  Re7 {[%clk 0:01:05]} 23. Qd4 {[%clk 0:01:18]}  Rhe8 {[%clk 0:00:56]} 24. Rxe7 {[%clk 0:00:57]}  Qxe7 {[%clk 0:00:57]} 25. Qh4 {[%clk 0:00:51]}  Be5 {[%clk 0:00:47]} 26. Qxh7 {[%clk 0:00:40]}  Rd8 {[%clk 0:00:47]} 27. Qh6 {[%clk 0:00:33]}  c5 {[%clk 0:00:46]} 28. Qe3 {[%clk 0:00:22]}  c4 {[%clk 0:00:40]} 29. Ba2 {[%clk 0:00:22]}  d4 {[%clk 0:00:36]} 30. Qe2 {[%clk 0:00:19]}  c3 {[%clk 0:00:17]} 31. b4 {[%clk 0:00:20]}  Rd6 {[%clk 0:00:11]} 32. Nc5 {[%clk 0:00:19]}  Rb6 {[%clk 0:00:11]} 33. Qc4 {[%clk 0:00:16]}  Bc8 {[%clk 0:00:11]} 34. Bb3 {[%clk 0:00:16]}  Qc7 {[%clk 0:00:06]} 35. g4 {[%clk 0:00:13]}  a5 {[%clk 0:00:05]} 36. b5 {[%clk 0:00:07]}  Rd6 {[%clk 0:00:02]} 37. a4 {[%clk 0:00:04]}  Qb6 {[%clk 0:00:02]} 38. Ne4 {[%clk 0:00:04]}  Rd7 {[%clk 0:00:02]} 39. h4 {[%clk 0:00:03]}  Bb7 {[%clk 0:00:03]} 40. Qd3 {[%clk 0:00:02]}  Qd8 {[%clk 0:00:02]} 41. Ka2 {[%clk 0:00:02]}  Qc7 {[%clk 0:00:02]} 42. Re1 {[%clk 0:00:03]}  Re7 {[%clk 0:00:02]} 43. g5 {[%clk 0:00:03]}  Bf4 {[%clk 0:00:01]} 44. gxf6 {[%clk 0:00:03]}  Rd7 {[%clk 0:00:01]} 45. Nf2 {[%clk 0:00:03]}  Be3 {[%clk 0:00:02]} 46. Ng4 {[%clk 0:00:03]}  Bd2 {[%clk 0:00:01]} 47. Re8+ {[%clk 0:00:04]}  Ka7 {[%clk 0:00:02]} 48. Ne5 {[%clk 0:00:05]}  Rd6 {[%clk 0:00:02]} 49. Re7 {[%clk 0:00:05]}  Qc5 {[%clk 0:00:02]} 50. Nc6+ {[%clk 0:00:05]}  Kb6 {[%clk 0:00:02]} 51. Rxf7 {[%clk 0:00:03]}  Bc1 {[%clk 0:00:03]} 52. Kb1 {[%clk 0:00:02]}  Qa3 {[%clk 0:00:02]} 53. Rxb7+ {[%clk 0:00:03]}  Kc5 {[%clk 0:00:02]} 54. Qc4# {[%clk 0:00:03]} 1-0


[Site "https://www.chess.com"]

[Event "Titled Tuesday Blitz March 29 Late 2022"]
[White "Petrova, Irina"]
[Black "Curtis, John"]
[WhiteFideId "14124122"]
[BlackFideId "3200256"]
[WhiteElo "1993"]
[BlackElo "2203"]
[Result "1-0"]
[Round "08"]
[TimeControl "180+1"]
[Date "2022.03.30"]
[WhiteClock "0:00:11"]
[BlackClock "0:00:03"]

1. e4 {[%clk 0:03:00]}  d5 {[%clk 0:02:54]} 2. exd5 {[%clk 0:03:00]}  Qxd5 {[%clk 0:02:54]} 3. Nc3 {[%clk 0:03:00]}  Qa5 {[%clk 0:02:54]} 4. d4 {[%clk 0:03:00]}  c6 {[%clk 0:02:54]} 5. Bd2 {[%clk 0:03:00]}  Nf6 {[%clk 0:02:49]} 6. Bc4 {[%clk 0:02:59]}  Bg4 {[%clk 0:02:47]} 7. f3 {[%clk 0:02:58]}  Bf5 {[%clk 0:02:36]} 8. Nge2 {[%clk 0:02:55]}  e6 {[%clk 0:02:34]} 9. Ng3 {[%clk 0:02:48]}  Bg6 {[%clk 0:02:33]} 10. Nge4 {[%clk 0:02:43]}  Nbd7 {[%clk 0:02:18]} 11. O-O {[%clk 0:02:34]}  Qb6 {[%clk 0:02:17]} 12. Be3 {[%clk 0:02:24]}  Bxe4 {[%clk 0:02:05]} 13. Nxe4 {[%clk 0:02:21]}  Nd5 {[%clk 0:01:55]} 14. Bxd5 {[%clk 0:02:15]}  cxd5 {[%clk 0:01:54]} 15. Nc3 {[%clk 0:01:55]}  a6 {[%clk 0:01:45]} 16. Qd3 {[%clk 0:01:46]}  Rc8 {[%clk 0:01:43]} 17. Rae1 {[%clk 0:01:39]}  Be7 {[%clk 0:01:19]} 18. Bc1 {[%clk 0:01:35]}  Nf6 {[%clk 0:01:15]} 19. g4 {[%clk 0:01:23]}  h6 {[%clk 0:01:08]} 20. Kg2 {[%clk 0:01:19]}  Rc4 {[%clk 0:01:06]} 21. Ne2 {[%clk 0:01:15]}  Bd6 {[%clk 0:00:43]} 22. c3 {[%clk 0:01:14]}  Rc7 {[%clk 0:00:40]} 23. Ng3 {[%clk 0:01:00]}  Kd7 {[%clk 0:00:26]} 24. Re2 {[%clk 0:00:59]}  Kc8 {[%clk 0:00:26]} 25. b3 {[%clk 0:00:42]}  Qb5 {[%clk 0:00:26]} 26. Qd1 {[%clk 0:00:18]}  Rxc3 {[%clk 0:00:22]} 27. Rff2 {[%clk 0:00:18]}  Kb8 {[%clk 0:00:21]} 28. Rc2 {[%clk 0:00:17]}  Rxc2 {[%clk 0:00:21]} 29. Rxc2 {[%clk 0:00:17]}  Rc8 {[%clk 0:00:21]} 30. Rxc8+ {[%clk 0:00:16]}  Kxc8 {[%clk 0:00:22]} 31. Ne2 {[%clk 0:00:15]}  Kd7 {[%clk 0:00:17]} 32. Nf4 {[%clk 0:00:15]}  Bxf4 {[%clk 0:00:14]} 33. Bxf4 {[%clk 0:00:16]}  Ne8 {[%clk 0:00:12]} 34. Qc2 {[%clk 0:00:15]}  f6 {[%clk 0:00:11]} 35. Bg3 {[%clk 0:00:13]}  Qc6 {[%clk 0:00:08]} 36. Qg6 {[%clk 0:00:13]}  Qc3 {[%clk 0:00:05]} 37. Qf7+ {[%clk 0:00:12]}  Kd8 {[%clk 0:00:03]} 38. Bf2 {[%clk 0:00:11]} 1-0


[Site "https://www.chess.com"]